bitfinex/quotes_BTCUSD_20251214
["timestamp","ask_amount","ask_price","bid_price","bid_amount"]
[1765722726903,0.01199,89252.0,89249.0,0.23529489]
[1765722727389,0.01799,89252.0,89249.0,0.23529489]
[1765722727590,0.006,89252.0,89250.0,0.22408765]
[1765722727810,0.006,89252.0,89249.0,0.23529489]
[1765722728099,0.006,89252.0,89250.0,0.22408728]
[1765722728325,0.006,89252.0,89251.0,0.00075894]
[1765722728527,0.004,89252.0,89251.0,0.00075894]
[1765722728740,0.02025,89252.0,89251.0,0.00075894]
[1765722728942,0.02225,89252.0,89251.0,0.00075894]
[1765722729144,0.0462,89252.0,89251.0,0.00075894]
[1765722729348,0.0442,89252.0,89251.0,0.00075894]
[1765722729567,0.0402,89252.0,89251.0,0.00075894]
[1765722729899,0.01825,89252.0,89251.0,0.00075894]
[1765722730101,0.006,89252.0,89251.0,0.00075894]
[1765722730460,0.002,89252.0,89251.0,0.00075894]
[1765722730870,0.02225,89252.0,89251.0,0.00075894]
[1765722731291,0.0462,89252.0,89251.0,0.00075894]
[1765722734191,0.07421057,89252.0,89251.0,0.00075894]
[1765722734597,0.0402,89252.0,89251.0,0.00075894]
[1765722734818,0.0442,89252.0,89251.0,0.00075894]
[1765722736035,0.0512,89252.0,89251.0,0.00075894]
[1765722737478,0.06888,89252.0,89251.0,0.00075894]
[1765722738269,0.09689057,89252.0,89251.0,0.00075894]
[1765722739034,0.08588643,89252.0,89251.0,0.00075894]
[1765722739235,0.0512,89252.0,89251.0,0.00075894]
[1765722739433,0.02868,89252.0,89251.0,0.00075894]
[1765722740808,0.011,89252.0,89251.0,0.00075894]
[1765722740959,0.02868,89252.0,89251.0,0.00075894]
[1765722743831,0.05692,89252.0,89251.0,0.00075894]
[1765722744149,0.10888057,89252.0,89251.0,0.00075894]
[1765722744702,0.04067,89252.0,89251.0,0.00075894]
[1765722746055,0.08093,89252.0,89251.0,0.00075894]
[1765722748412,0.10894057,89252.0,89251.0,0.00075894]
[1765722756511,0.02868,89252.0,89251.0,0.01225181]
[1765722756714,0.011,89252.0,89251.0,0.02813181]
[1765722757628,0.011,89252.0,89251.0,0.01225181]
[1765722758512,0.011,89252.0,89251.0,0.00237181]
[1765722758771,0.05126,89252.0,89251.0,0.00237181]
[1765722759295,0.27534461,89252.0,89251.0,0.00237181]
[1765722759753,0.27534461,89252.0,89251.0,0.00075894]
[1765722760254,0.011,89252.0,89251.0,0.22484606]
[1765722760479,0.011,89252.0,89251.0,0.26047606]
[1765722760698,0.011,89252.0,89251.0,0.22484606]
[1765722761744,0.011,89252.0,89251.0,0.00075894]
[1765722762358,0.23508461,89252.0,89251.0,0.00075894]
[1765722762613,0.27534461,89252.0,89251.0,0.00075894]
[1765722764714,0.05126,89252.0,89251.0,0.00075894]
[1765722765034,0.25120461,89252.0,89251.0,0.00075894]
[1765722765365,0.27534461,89252.0,89251.0,0.00075894]
[1765722789306,0.325363,89252.0,89251.0,0.00075894]
[1765722790785,0.22419513,89208.0,89200.0,0.0026]
[1765722791036,0.59880352,89208.0,89200.0,0.0026]
[1765722791245,0.27423112,89201.0,89200.0,0.0026]
[1765722791455,0.24042273,89201.0,89200.0,0.0026]
[1765722791658,0.26468273,89201.0,89200.0,0.0026]
[1765722791786,0.26468273,89201.0,89200.0,0.00421287]
[1765722791992,0.01121038,89203.0,89200.0,0.00421287]
[1765722792201,0.24193021,89202.0,89200.0,0.00421287]
[1765722792693,0.01772,89202.0,89201.0,0.22421273]
[1765722792858,0.01772,89205.0,89204.0,0.01121025]
[1765722793030,0.01772,89205.0,89204.0,0.01282312]
[1765722793248,0.01772,89205.0,89204.0,0.00161287]
[1765722793457,0.02892963,89209.0,89204.0,0.01772287]
[1765722793666,0.02892963,89209.0,89206.0,0.01121]
[1765722793992,0.02892963,89209.0,89206.0,0.01282287]
[1765722794197,0.02892963,89209.0,89206.0,0.00161287]
[1765722794574,0.03192963,89209.0,89206.0,0.00161287]
[1765722795189,0.03792963,89209.0,89206.0,0.00161287]
[1765722795387,0.02672,89209.0,89207.0,0.22419765]
[1765722795592,0.009,89209.0,89208.0,0.01611]
[1765722795910,0.009,89209.0,89208.0,0.04258287]
[1765722796070,0.009,89209.0,89208.0,0.01772287]
[1765722796412,0.009,89209.0,89208.0,0.00161287]
[1765722796413,0.03665,89209.0,89208.0,0.00161287]
[1765722796575,0.02044,89209.0,89208.0,0.00161287]
[1765722796774,0.009,89209.0,89208.0,0.00161287]
[1765722796981,0.2241902,89210.0,89208.0,0.00161287]
[1765722797185,0.003,89209.0,89208.0,0.00161287]
[1765722797840,0.006,89209.0,89208.0,0.00161287]
[1765722798108,0.01744,89209.0,89208.0,0.00161287]
[1765722798342,0.01444,89209.0,89208.0,0.00161287]
[1765722798755,0.03165,89209.0,89208.0,0.00161287]
[1765722798974,0.01121,89206.0,89202.0,0.01121051]
[1765722799145,0.22419513,89208.0,89203.0,0.01121038]
[1765722799344,0.22420016,89206.0,89203.0,0.01282325]
[1765722799566,0.01121,89206.0,89203.0,0.00161287]
[1765722800597,0.22420267,89205.0,89203.0,0.00161287]
[1765722800830,0.01120988,89207.0,89203.0,0.01282325]
[1765722800949,0.003,89206.0,89203.0,0.01282325]
[1765722801152,0.004,89206.0,89205.0,0.01121013]
[1765722801507,0.003,89206.0,89205.0,0.028933]
[1765722801704,0.003,89206.0,89205.0,0.053793]
[1765722803203,0.0295644,89213.0,89209.0,0.01120963]
[1765722803409,0.0295644,89213.0,89209.0,0.0128225]
[1765722803608,0.01120912,89213.0,89212.0,0.00118463]
[1765722803937,0.01772,89214.0,89212.0,0.00118463]
[1765722804154,0.01772,89214.0,89210.0,0.23539901]
[1765722804155,0.01120912,89213.0,89210.0,0.0112095]
[1765722804803,0.01820912,89213.0,89210.0,0.0112095]
[1765722804964,0.01120925,89212.0,89209.0,0.0207825]
[1765722805509,0.01120912,89213.0,89210.0,0.0112095]
[1765722805670,0.03923194,89213.0,89210.0,0.01282237]
[1765722805846,0.26341477,89213.0,89210.0,0.01282237]
[1765722806050,0.01120912,89213.0,89210.0,0.00161287]
[1765722806272,0.03923194,89213.0,89210.0,0.00161287]
[1765722806524,0.04623194,89213.0,89210.0,0.00161287]
[1765722806729,0.26541701,89213.0,89210.0,0.00161287]
[1765722807142,0.04523194,89213.0,89210.0,0.00261287]
[1765722807386,0.22418508,89212.0,89210.0,0.00261287]
[1765722807606,0.01609,89211.0,89210.0,0.00261287]
[1765722807941,0.04037,89211.0,89210.0,0.00261287]
[1765722808376,0.04037,89211.0,89210.0,0.001]
[1765722808545,0.04037,89211.0,89203.0,0.01121038]
[1765722808546,0.01120975,89208.0,89203.0,0.01121038]
[1765722808746,0.01120988,89207.0,89204.0,0.01121025]
[1765722808928,0.01120988,89207.0,89204.0,0.01282312]
[1765722809987,0.22420016,89206.0,89204.0,0.00161287]
[1765722810192,0.01120988,89207.0,89204.0,0.00161287]
[1765722810401,0.01120988,89207.0,89205.0,0.00139737]
[1765722810622,0.01420988,89207.0,89205.0,0.00139737]
[1765722810838,0.01220988,89207.0,89206.0,0.00136698]
[1765722811314,0.01120988,89207.0,89206.0,0.00136698]
[1765722811613,0.01220988,89207.0,89206.0,0.00136698]
[1765722812163,0.001,89207.0,89206.0,0.00136698]
[1765722812369,0.001,89207.0,89206.0,0.01909985]
[1765722812567,0.001,89207.0,89206.0,0.24330001]
[1765722813043,0.004,89207.0,89206.0,0.26750001]
[1765722813246,0.001,89207.0,89206.0,0.26750001]
[1765722813596,0.003,89207.0,89206.0,1.26850001]
[1765722813799,0.003,89207.0,89206.0,1.27970951]
[1765722814006,0.004,89207.0,89206.0,1.28070951]
[1765722815821,0.004,89207.0,89206.0,1.57140951]
[1765722817545,0.004,89207.0,89206.0,1.29130951]
[1765722817936,0.004,89207.0,89206.0,0.69130951]
[1765722818827,0.004,89207.0,89206.0,0.57140951]
[1765722819051,0.004,89207.0,89206.0,0.54720951]
[1765722819235,0.004,89207.0,89206.0,0.57140951]
[1765722819795,0.004,89207.0,89206.0,0.54720951]
[1765722820938,0.01191,89215.0,89214.0,0.22418006]
[1765722821888,0.02428,89221.0,89219.0,0.22416559]
[1765722822226,0.02801999,89222.0,89220.0,0.22416284]
[1765722822417,0.02892711,89229.0,89224.0,0.01120774]
[1765722822679,0.23535429,89228.0,89224.0,0.01120774]
[1765722822913,0.23535429,89228.0,89224.0,0.23536258]
[1765722823271,0.02892711,89229.0,89225.0,0.23535814]
[1765722823495,0.01609,89225.0,89221.0,0.01120812]
[1765722823707,0.01609,89222.0,89220.0,0.00161287]
[1765722823896,0.0392271,89224.0,89221.0,0.01120812]
[1765722824102,0.02428,89223.0,89221.0,0.01120812]
[1765722824307,0.01609,89222.0,89221.0,0.01120812]
[1765722824462,0.01120824,89220.0,89216.0,0.01120875]
[1765722824811,0.02428,89219.0,89217.0,0.23538107]
[1765722825228,0.01609,89218.0,89217.0,0.23538107]
[1765722825576,0.04037,89218.0,89217.0,0.23538107]
[1765722825780,0.03101999,89222.0,89219.0,0.23537529]
[1765722826109,0.003,89222.0,89219.0,0.23537529]
[1765722826310,0.03228,89222.0,89219.0,0.23537529]
[1765722826678,0.02801936,89224.0,89221.0,0.22416247]
[1765722826881,0.01120749,89226.0,89222.0,0.01120799]
[1765722827104,0.01120749,89226.0,89223.0,0.01120787]
[1765722827304,0.01120699,89230.0,89225.0,0.01612]
[1765722827505,0.01772,89230.0,89227.0,0.01120736]
[1765722827706,0.01772,89230.0,89229.0,0.00066813]
[1765722828624,0.02992699,89230.0,89229.0,0.00066813]
[1765722828824,0.01872,89230.0,89229.0,0.00066813]
[1765722829066,0.001,89230.0,89229.0,0.01678813]
[1765722829924,0.003,89230.0,89229.0,0.01678813]
[1765722830297,0.22513986,89230.0,89229.0,0.00066813]
[1765722830524,0.22613986,89230.0,89229.0,0.00066813]
[1765722833496,0.22613986,89230.0,89201.0,0.01121063]
[1765722833497,0.01120925,89212.0,89201.0,0.01121063]
[1765722833700,0.01120887,89215.0,89210.0,0.22418945]
[1765722833899,0.01120887,89215.0,89200.0,0.01315]
[1765722833900,0.01609,89211.0,89205.0,0.22431796]
[1765722834029,0.23540255,89209.0,89205.0,0.00011585]
[1765722834243,0.0112095,89210.0,89205.0,0.01132598]
[1765722834443,0.22417459,89217.0,89205.0,0.01132598]
[1765722834444,0.02892837,89219.0,89214.0,0.22417903]
[1765722834644,0.02892837,89219.0,89214.0,0.00161287]
[1765722834851,0.02892837,89219.0,89214.0,0.22417937]
[1765722835076,0.01772,89219.0,89217.0,0.22417252]
[1765722835434,0.01772,89219.0,89216.0,0.01120875]
[1765722835630,0.01772,89219.0,89216.0,0.2353836]
[1765722837055,0.02272,89219.0,89216.0,0.2353836]
[1765722837522,0.02572,89219.0,89216.0,0.2353836]
[1765722838559,0.02572,89219.0,89216.0,0.01120875]
[1765722839370,0.02572,89219.0,89213.0,0.2353911]
[1765722839371,0.01120875,89216.0,89213.0,0.01120912]
[1765722840607,0.01320875,89216.0,89213.0,0.01120912]
[1765722840815,0.01720875,89216.0,89213.0,0.01120912]
[1765722841261,0.006,89216.0,89214.0,0.22418006]
[1765722842499,0.004,89216.0,89214.0,0.22418006]
[1765722842865,0.006,89216.0,89214.0,0.22418006]
[1765722843272,0.002,89216.0,89214.0,0.22418006]
[1765722844220,0.006,89216.0,89214.0,0.22418006]
[1765722844806,0.01759,89216.0,89215.0,0.00042529]
[1765722845363,0.05204287,89216.0,89215.0,0.00042529]
[1765722845546,0.07491287,89216.0,89215.0,0.00042529]
[1765722845863,0.07291287,89216.0,89215.0,0.00042529]
[1765722846069,0.07191287,89216.0,89215.0,0.00042529]
[1765722846217,0.07191287,89216.0,89201.0,0.01121063]
[1765722846218,0.01121164,89193.0,89188.0,0.01121227]
[1765722846418,0.01159,89192.0,89188.0,0.23545768]
[1765722846752,0.01159,89192.0,89190.0,0.01121201]
[1765722847100,0.02280176,89192.0,89189.0,0.01121214]
[1765722847297,0.02280176,89192.0,89187.0,0.01121239]
[1765722847556,0.02280176,89192.0,89186.0,0.22444999]
[1765722847557,0.23936771,89188.0,89186.0,0.0002]
[1765722847739,0.01512,89187.0,89186.0,0.0002]
[1765722847950,0.03960287,89187.0,89186.0,0.0002]
[1765722848261,0.03960287,89187.0,89184.0,0.05]
[1765722848262,0.27426883,89186.0,89184.0,0.05]
[1765722848433,0.01673287,89185.0,89184.0,0.05]
[1765722848643,0.03960287,89185.0,89184.0,0.05]
[1765722850088,0.04060287,89185.0,89184.0,0.05]
[1765722850333,0.09162126,89185.0,89184.0,0.05]
[1765722850776,0.05932287,89185.0,89184.0,0.05]
[1765722851444,0.04160287,89185.0,89184.0,0.05]
[1765722851649,0.05932287,89185.0,89184.0,0.05]
[1765722852501,0.04160287,89185.0,89184.0,0.05]
[1765722852706,0.03484,89185.0,89184.0,0.05]
[1765722852918,0.03484,89185.0,89184.0,0.05094211]
[1765722853187,0.05771,89185.0,89184.0,0.05094211]
[1765722853812,0.28196295,89185.0,89184.0,0.05094211]
[1765722854028,0.33198134,89185.0,89184.0,0.05094211]
[1765722854257,0.33198134,89185.0,89184.0,0.02594211]
[1765722854465,0.33198134,89185.0,89184.0,0.00094211]
[1765722855335,0.33098134,89185.0,89184.0,0.00094211]
[1765722855785,0.33098134,89185.0,89183.0,0.0002]
[1765722855786,0.22428061,89174.0,89173.0,0.00024004]
[1765722856010,0.316769,89174.0,89173.0,0.00024004]
[1765722856227,0.34125187,89174.0,89173.0,0.00024004]
[1765722857181,0.34225187,89174.0,89173.0,0.00024004]
[1765722858267,0.22429571,89168.0,89167.0,0.05]
[1765722858467,0.27432919,89162.0,89161.0,0.0002]
[1765722858710,0.22435835,89144.0,89138.0,0.01121855]
[1765722858944,0.22435835,89144.0,89135.0,0.01121893]
[1765722858945,0.04443,89143.0,89135.0,0.01121893]
[1765722859135,0.06891287,89143.0,89131.0,0.01121944]
[1765722859347,0.06891287,89143.0,89128.0,0.01121981]
[1765722859348,0.11893126,89143.0,89133.0,0.01121918]
[1765722859573,0.11893126,89143.0,89137.0,0.01121868]
[1765722859748,0.11893126,89143.0,89136.0,0.01121881]
[1765722859906,0.11893126,89143.0,89137.0,0.22437284]
[1765722860112,0.11893126,89143.0,89137.0,0.23559152]
[1765722860308,0.12293126,89143.0,89137.0,0.01121868]
[1765722860531,0.12293126,89143.0,89131.0,0.01121944]
[1765722860532,0.12893126,89143.0,89126.0,0.01122007]
[1765722860746,0.12893126,89143.0,89122.0,0.02322057]
[1765722860950,0.11121126,89143.0,89130.0,0.01121956]
[1765722861154,0.12893126,89143.0,89133.0,0.01121918]
[1765722861446,0.12893126,89143.0,89130.0,0.01121956]
[1765722861631,0.12493126,89143.0,89132.0,0.01121931]
[1765722861878,0.12493126,89143.0,89127.0,0.01121994]
[1765722861879,0.12593126,89143.0,89127.0,0.01121994]
[1765722862081,0.12593126,89143.0,89142.0,0.08165336]
[1765722862537,0.11893126,89143.0,89142.0,0.08165336]
[1765722862887,0.10221126,89143.0,89142.0,0.08165336]
[1765722863165,0.05219287,89143.0,89142.0,0.08165336]
[1765722863403,0.07091287,89143.0,89142.0,0.08165336]
[1765722863628,0.0693,89143.0,89142.0,0.08165336]
[1765722863778,0.04643,89143.0,89142.0,0.08165336]
[1765722864315,0.03131,89143.0,89142.0,0.08165336]
[1765722864803,0.03131,89143.0,89142.0,0.30601449]
[1765722865345,0.04643,89143.0,89142.0,0.30601449]
[1765722866578,0.04643,89143.0,89142.0,0.30613036]
[1765722866839,0.03131,89143.0,89142.0,0.30613036]
[1765722867286,0.07077,89143.0,89142.0,0.30613036]
[1765722867535,0.04784,89143.0,89142.0,0.30613036]
[1765722867736,0.01972,89143.0,89142.0,0.32132036]
[1765722867953,0.002,89143.0,89142.0,0.34447036]
[1765722868181,0.001,89143.0,89142.0,0.34447036]
[1765722868403,0.01772,89151.0,89150.0,0.22434099]
[1765722868879,0.01121528,89164.0,89159.0,0.23553235]
[1765722869089,0.01653,89160.0,89156.0,0.01121629]
[1765722869299,0.01653,89157.0,89154.0,0.01121654]
[1765722869510,0.01653,89157.0,89153.0,0.23555]
[1765722869511,0.01235,89154.0,89150.0,0.01121704]
[1765722869725,0.22633848,89151.0,89150.0,0.003]
[1765722869934,0.24405848,89151.0,89150.0,0.003]
[1765722870148,0.28413135,89151.0,89150.0,0.002]
[1765722871006,0.28413135,89151.0,89142.0,0.09171004]
[1765722871007,0.23556912,89146.0,89142.0,0.09171004]
[1765722871235,0.01653,89143.0,89142.0,0.09171004]
[1765722871654,0.03946,89143.0,89142.0,0.08049199]
[1765722871857,0.06750482,89143.0,89142.0,0.08049199]
[1765722872306,0.29186343,89143.0,89142.0,0.08049199]
[1765722872542,0.26543148,89143.0,89142.0,0.08049199]
[1765722872987,0.27643148,89143.0,89142.0,0.08149199]
[1765722874475,0.04107287,89143.0,89142.0,0.08049199]
[1765722874688,0.04607287,89143.0,89142.0,0.08149199]
[1765722874900,0.27743148,89143.0,89142.0,0.08276923]
[1765722875074,0.05307287,89143.0,89142.0,0.08276923]
[1765722875299,0.08111769,89143.0,89142.0,0.08276923]
[1765722876322,0.01361287,89143.0,89142.0,0.08276923]
[1765722876532,0.012,89143.0,89142.0,0.08276923]
[1765722876731,0.02972,89143.0,89142.0,0.08276923]
[1765722879793,0.012,89143.0,89142.0,0.08276923]
[1765722880213,0.02853,89143.0,89142.0,0.08276923]
[1765722880334,0.07950482,89143.0,89142.0,0.08276923]
[1765722882251,0.08111769,89143.0,89142.0,0.08276923]
[1765722883837,0.04165769,89143.0,89142.0,0.08276923]
[1765722884047,0.03014287,89143.0,89142.0,0.08276923]
[1765722884265,0.05146,89143.0,89142.0,0.08276923]
[1765722884474,0.02853,89143.0,89142.0,0.08276923]
[1765722884883,0.05146,89143.0,89142.0,0.08276923]
[1765722885092,0.012,89143.0,89142.0,0.34547036]
[1765722885299,0.02853,89143.0,89142.0,0.30713036]
[1765722885508,0.05146,89143.0,89142.0,0.08276923]
[1765722886161,0.07250482,89143.0,89142.0,0.08276923]
[1765722886562,0.07850482,89143.0,89142.0,0.08276923]
[1765722886715,0.03904482,89143.0,89142.0,0.08276923]
[1765722886917,0.011,89143.0,89142.0,0.08276923]
[1765722887141,0.011,89143.0,89142.0,0.09795923]
[1765722887348,0.011,89143.0,89142.0,0.08276923]
[1765722887553,0.07850482,89143.0,89142.0,0.08276923]
[1765722887914,0.06750482,89143.0,89142.0,0.08176923]
[1765722888119,0.07950482,89143.0,89142.0,0.08276923]
[1765722888350,0.08111769,89143.0,89142.0,0.08276923]
[1765722888558,0.05307287,89143.0,89142.0,0.08276923]
[1765722888743,0.07611769,89143.0,89142.0,0.08176923]
[1765722889189,0.08658639,89143.0,89142.0,0.08176923]
[1765722889399,0.09258639,89143.0,89142.0,0.08276923]
[1765722889753,0.43330478,89143.0,89142.0,0.06751764]
[1765722889966,0.43330478,89143.0,89083.0,0.10008962]
[1765722889967,0.01122599,89079.0,89076.0,9e-05]
[1765722890193,0.01122599,89079.0,89055.0,0.01250069]
[1765722890194,0.22455005,89067.0,89055.0,0.01250069]
[1765722890395,0.22455005,89067.0,89066.0,0.07843812]
[1765722890396,0.58379628,89067.0,89066.0,0.07843812]
[1765722890566,0.61715893,89067.0,89066.0,0.07843812]
[1765722890951,0.00038497,89067.0,89066.0,0.07843812]
[1765722891166,0.01814497,89067.0,89066.0,0.07843812]
[1765722891394,0.00038497,89067.0,89066.0,0.07843812]
[1765722891691,0.00038497,89067.0,89066.0,0.09362812]
[1765722891895,0.00038497,89067.0,89066.0,0.40747812]
[1765722892108,0.00638497,89067.0,89066.0,0.40847812]
[1765722892320,0.00638497,89067.0,89066.0,0.40747812]
[1765722892321,0.00038497,89067.0,89066.0,0.40747812]
[1765722892533,0.00138497,89067.0,89066.0,1.40847812]
[1765722892745,0.00338497,89067.0,89066.0,1.40947812]
[1765722893377,0.00338497,89067.0,89066.0,0.40947812]
[1765722893598,0.00338497,89067.0,89066.0,1.40947812]
[1765722894046,0.00138497,89067.0,89066.0,1.40847812]
[1765722894248,0.02902246,89107.0,89066.0,1.40747812]
[1765722894454,0.02902246,89107.0,89104.0,0.01122284]
[1765722894455,0.0178,89107.0,89104.0,0.01122284]
[1765722894734,0.00585006,89108.0,89106.0,0.01042]
[1765722894873,0.22445177,89106.0,89100.0,0.01122334]
[1765722895099,0.00161287,89107.0,89104.0,0.01122284]
[1765722895332,0.00361287,89107.0,89104.0,0.01122284]
[1765722895537,0.01122284,89104.0,89100.0,0.01122334]
[1765722895732,0.01122284,89104.0,89100.0,0.01131812]
[1765722895975,0.01122284,89104.0,89100.0,9.478e-05]
[1765722895976,0.01122296,89103.0,89100.0,9.478e-05]
[1765722897193,0.01122284,89104.0,89101.0,0.01122321]
[1765722897396,0.002,89104.0,89101.0,0.01122321]
[1765722897554,0.01122258,89106.0,89100.0,9.478e-05]
[1765722897754,0.001,89104.0,89101.0,0.01122321]
[1765722897958,0.002,89103.0,89101.0,0.01122321]
[1765722898154,0.001,89104.0,89101.0,0.01122321]
[1765722898366,0.01283533,89107.0,89102.0,0.01122309]
[1765722898545,0.00161287,89107.0,89104.0,0.01122284]
[1765722898757,0.01122271,89105.0,89102.0,0.01122309]
[1765722898988,0.01222258,89106.0,89103.0,0.01122296]
[1765722899225,0.00161287,89107.0,89104.0,0.01122284]
[1765722899427,0.00161287,89107.0,89104.0,0.23567965]
[1765722899629,0.0112217,89113.0,89109.0,0.01122221]
[1765722900072,0.01122221,89109.0,89103.0,0.01122296]
[1765722900262,0.22444673,89108.0,89103.0,0.01122296]
[1765722900476,0.01122246,89107.0,89103.0,0.01122296]
[1765722900648,0.01122246,89107.0,89100.0,0.23578348]
[1765722900649,0.23568262,89103.0,89100.0,9.478e-05]
[1765722900845,0.01534,89101.0,89100.0,9.478e-05]
[1765722901026,0.01122674,89073.0,89067.0,0.0112275]
[1765722901232,0.0178,89077.0,89075.0,0.22452844]
[1765722901436,0.03542523,89085.0,89074.0,0.01122662]
[1765722901637,0.01122662,89074.0,89071.0,0.01122699]
[1765722901840,0.01122662,89074.0,89068.0,0.01122737]
[1765722902015,0.01122662,89074.0,89070.0,0.01122712]
[1765722902215,0.01122662,89074.0,89068.0,0.01122737]
[1765722902216,0.01122687,89072.0,89069.0,0.01122725]
[1765722902422,0.001,89077.0,89073.0,0.01042]
[1765722902664,0.001,89077.0,89074.0,0.01122662]
[1765722902869,0.01122611,89078.0,89074.0,0.01122662]
[1765722903074,0.01122611,89078.0,89073.0,0.02164674]
[1765722903075,0.23575455,89076.0,89073.0,0.01042]
[1765722903277,0.23575455,89076.0,89067.0,0.00011253]
[1765722903278,0.2245458,89069.0,89067.0,0.00011253]
[1765722903808,0.01233,89071.0,89068.0,0.01122737]
[1765722904008,0.01122674,89073.0,89070.0,0.01122712]
[1765722904237,0.01122649,89075.0,89067.0,0.01134003]
[1765722904469,0.02765,89068.0,89067.0,0.00011253]
[1765722904894,0.05185,89068.0,89067.0,0.00011253]
[1765722905342,0.10186839,89068.0,89067.0,0.00011253]
[1765722905551,0.39256839,89068.0,89067.0,0.00011253]
[1765722906048,0.39456839,89068.0,89067.0,0.00011253]
[1765722906671,0.39756839,89068.0,89067.0,0.00011253]
[1765722906876,0.39456839,89068.0,89067.0,0.00011253]
[1765722907229,0.35802839,89068.0,89067.0,0.00228325]
[1765722907551,0.34071839,89056.0,89052.0,0.0002]
[1765722907751,0.37389839,89056.0,89055.0,0.01288566]
[1765722908066,0.39809839,89056.0,89055.0,0.01288566]
[1765722909865,0.39809839,89056.0,89016.0,0.01123393]
[1765722909866,0.01123179,89033.0,89016.0,0.01123393]
[1765722910079,0.28999924,89031.0,89023.0,0.01123305]
[1765722910289,0.28999924,89031.0,89029.0,0.2246448]
[1765722910290,0.01534,89031.0,89029.0,0.2246448]
[1765722910496,0.03318,89031.0,89028.0,0.01123242]
[1765722910707,0.05738,89031.0,89025.0,0.01123279]
[1765722910915,0.10739839,89031.0,89015.0,0.01123406]
[1765722911122,0.10739839,89031.0,89017.0,0.0112338]
[1765722911333,0.10739839,89031.0,89016.0,0.01123393]
[1765722911548,0.10939839,89031.0,89021.0,0.0112333]
[1765722911755,0.11339839,89031.0,89012.0,0.23592126]
[1765722911964,0.11139839,89031.0,89017.0,0.0112338]
[1765722912139,0.11139839,89031.0,89021.0,0.0112333]
[1765722912373,0.11139839,89031.0,89014.0,0.01123418]
[1765722912374,0.11439839,89031.0,89016.0,0.23591205]
[1765722912578,0.11439839,89031.0,89014.0,0.01123418]
[1765722912579,0.11439839,89031.0,89018.0,0.01123368]
[1765722912783,0.11439839,89031.0,89015.0,0.01123406]
[1765722912991,0.11039839,89031.0,89017.0,0.0112338]
[1765722913204,0.11039839,89031.0,89013.0,0.01123431]
[1765722913410,0.11539839,89031.0,89017.0,0.23590896]
[1765722913589,0.11701126,89031.0,89009.0,0.01123481]
[1765722913830,0.11701126,89031.0,89008.0,0.22703037]
[1765722913831,0.11701126,89031.0,89030.0,0.08229995]
[1765722914495,0.22469385,89010.0,89008.0,0.00233333]
[1765722914705,0.09349839,89009.0,89008.0,0.00233333]
[1765722914912,0.11769839,89009.0,89008.0,0.00233333]
[1765722915325,0.22464419,89030.0,89009.0,0.22469637]
[1765722915534,0.01237,89022.0,89021.0,0.23589939]
[1765722915938,0.03021,89022.0,89021.0,0.23589939]
[1765722916146,0.01237,89022.0,89021.0,0.23589939]
[1765722916370,0.01237,89032.0,89029.0,0.22464404]
[1765722916579,0.01784,89031.0,89028.0,0.01123242]
[1765722916787,0.01534,89029.0,89028.0,0.01123242]
[1765722917215,0.00038486,89033.0,89032.0,0.22463833]
[1765722917425,0.00038486,89033.0,89032.0,0.24107833]
[1765722917632,0.00038486,89033.0,89032.0,1.55481833]
[1765722918053,0.00038486,89033.0,89032.0,1.43381833]
[1765722918256,0.03623812,89069.0,89032.0,1.43381833]
[1765722918257,0.00817,89069.0,89068.0,0.22454753]
[1765722918463,0.02806749,89071.0,89068.0,0.23588663]
[1765722918668,0.02806592,89076.0,89075.0,0.22452989]
[1765722918871,0.01237,89077.0,89075.0,0.22452989]
[1765722919297,0.22454347,89070.0,89068.0,0.00011173]
[1765722919503,0.11291938,89069.0,89068.0,0.00011173]
[1765722919709,0.01123191,89032.0,89029.0,0.01123229]
[1765722919912,0.001,89033.0,89032.0,0.001]
[1765722920119,0.01123229,89029.0,89026.0,0.01123267]
[1765722920330,0.0234,89025.0,89024.0,0.01123292]
[1765722920739,0.0476,89025.0,89024.0,0.01123292]
[1765722920946,0.2246392,89032.0,89024.0,0.01123292]
[1765722920947,0.01237,89031.0,89030.0,0.01123216]
[1765722921151,0.00311538,89033.0,89030.0,0.01123216]
[1765722921361,0.00211538,89033.0,89032.0,0.001]
[1765722921569,0.00211538,89033.0,89032.0,0.01744]
[1765722921769,0.00011538,89033.0,89032.0,0.03948]
[1765722922122,0.00011538,89033.0,89032.0,0.33018]
[1765722922327,0.00011538,89033.0,89032.0,1.33018]
[1765722922529,0.00011538,89033.0,89032.0,0.33018]
[1765722922691,0.00011538,89033.0,89032.0,1.33018]
[1765722923727,0.00111538,89033.0,89032.0,0.63048]
[1765722923940,0.00211538,89033.0,89032.0,0.54946]
[1765722924381,0.00111538,89033.0,89032.0,0.33118]
[1765722924589,0.00111538,89033.0,89032.0,0.33318]
[1765722925003,0.00011538,89033.0,89032.0,0.33018]
[1765722925217,0.00011538,89033.0,89031.0,0.22463873]
[1765722925434,0.01248538,89033.0,89031.0,0.22463873]
[1765722925884,0.00111538,89033.0,89032.0,0.002]
[1765722926097,0.01260538,89033.0,89032.0,0.002]
[1765722926310,0.01260538,89033.0,89027.0,0.01123254]
[1765722926311,0.01123242,89028.0,89022.0,0.00024382]
[1765722926522,0.22465625,89025.0,89022.0,0.00024382]
[1765722926748,0.22465094,89027.0,89022.0,0.00024382]
[1765722926972,0.01123267,89026.0,89022.0,0.01147699]
[1765722927187,0.01123279,89025.0,89022.0,0.01147699]
[1765722927397,0.01578,89023.0,89022.0,0.00024382]
[1765722927605,0.06741126,89023.0,89022.0,0.00224382]
[1765722927819,0.09174126,89023.0,89022.0,0.00224382]
[1765722928268,0.09174126,89023.0,89022.0,0.00324382]
[1765722928686,0.10962126,89023.0,89022.0,0.00324382]
[1765722929126,0.10962126,89023.0,89022.0,0.00124382]
[1765722929379,0.05960287,89023.0,89022.0,0.00024382]
[1765722929596,0.03527287,89023.0,89022.0,0.00124382]
[1765722929807,0.03527287,89023.0,89022.0,0.00024382]
[1765722930049,0.15066453,89023.0,89022.0,0.00124382]
[1765722930264,0.27471476,89009.0,89000.0,10.02752]
[1765722930477,0.31986476,89009.0,89000.0,10.02752]
[1765722930690,0.34419476,89009.0,89000.0,10.02752]
[1765722931750,0.34419476,89009.0,89002.0,0.0112357]
[1765722931974,0.34419476,89009.0,89003.0,0.01123557]
[1765722932196,0.34419476,89009.0,89002.0,0.0112357]
[1765722932402,0.29417637,89009.0,89004.0,0.01123545]
[1765722932602,0.26984637,89009.0,89004.0,0.01123545]
[1765722932805,0.27384637,89009.0,89006.0,0.01123519]
[1765722933014,0.30517637,89009.0,89000.0,10.02752]
[1765722933243,0.30117637,89009.0,89000.0,10.02752]